bitfinex-derivatives/quotes_SOLF0:USTF0_20250425
["timestamp","ask_amount","ask_price","bid_price","bid_amount"]
[1745610155346,6.607,151.24,151.21,6.6077]
[1745610155649,10.15447692,151.25,151.21,6.6077]
[1745610155850,6.6069,151.24,151.21,6.6077]
[1745610156952,6.6069,151.24,151.2,10.15447692]
[1745610156953,6.607,151.23,151.2,16.76257692]
[1745610158453,6.6074,151.22,151.2,16.76257692]
[1745610158853,10.15447692,151.25,151.2,16.76257692]
[1745610159354,10.15447692,151.25,151.2,10.15447692]
[1745610159854,10.15447692,151.25,151.2,16.76257692]
[1745610160250,6.6072,151.23,151.2,16.76257692]
[1745610161553,6.6072,151.23,151.21,6.6078]
[1745610161856,6.6068,151.24,151.21,6.6078]
[1745610162553,16.76067692,151.25,151.22,6.6071]
[1745610162754,6.6062,151.25,151.22,10.15447692]
[1745610164051,23.84,151.27,151.24,10.15447692]
[1745610164350,14.15957692,151.29,151.24,10.15447692]
[1745610164555,12.14487692,151.29,151.24,10.15447692]
[1745610164755,6.604,151.3,151.27,6.6052]
[1745610168160,33.97447692,151.31,151.26,16.76007692]
[1745610168557,6.6042,151.3,151.27,6.6052]
[1745610169360,6.6042,151.3,151.26,16.75997692]
[1745610169561,6.6045,151.29,151.26,16.75997692]
[1745610169757,6.6045,151.29,151.22,4.007]
[1745610169758,10.15447692,151.29,151.22,4.007]
[1745610169961,6.6053,151.27,151.24,16.76067692]
[1745610170261,10.15447692,151.28,151.23,10.15447692]
[1745610170455,10.15447692,151.28,151.24,10.15447692]
[1745610170657,6.605,151.28,151.25,6.6058]
[1745610171363,16.75907692,151.29,151.25,6.6058]
[1745610171564,16.75907692,151.29,151.25,16.76027692]
[1745610171864,6.6049,151.28,151.25,16.76027692]
[1745610172466,6.6049,151.28,151.25,10.15447692]
[1745610172666,10.15447692,151.29,151.25,10.15447692]
[1745610173267,6.6055,151.27,151.25,10.15447692]
[1745610176369,6.6057,151.26,151.25,10.15447692]
[1745610176570,6.6057,151.26,151.23,10.15447692]
[1745610176971,10.15447692,151.27,151.22,1.9316]
[1745610177172,10.15447692,151.27,151.22,10.15447692]
[1745610177872,6.6059,151.26,151.22,16.76147692]
[1745610178774,10.15447692,151.27,151.22,16.76147692]
[1745610179074,10.15447692,151.27,151.23,6.6069]
[1745610179275,6.6059,151.26,151.23,6.6069]
[1745610179476,10.15447692,151.27,151.22,10.15447692]
[1745610179675,10.15447692,151.27,151.24,6.6064]
[1745610179870,16.75987692,151.27,151.24,6.6064]
[1745610180078,10.15447692,151.27,151.22,10.15447692]
[1745610180377,6.6057,151.26,151.23,6.6067]
[1745610182783,6.6057,151.26,151.24,6.6065]
[1745610183487,16.75987692,151.27,151.24,6.6065]
[1745610183690,33.97447692,151.31,151.26,10.15447692]
[1745610184587,6.6048,151.28,151.26,10.15447692]
[1745610184886,6.6048,151.28,151.25,6.6058]
[1745610185288,6.6056,151.27,151.24,16.76077692]
[1745610185581,10.15447692,151.29,151.24,10.15447692]
[1745610185783,6.6056,151.27,151.24,16.76067692]
[1745610187587,6.6056,151.27,151.25,6.6061]
[1745610187789,6.605,151.28,151.25,6.6061]
[1745610189291,6.6045,151.29,151.26,16.75997692]
[1745610195792,6.6051,151.28,151.26,10.15447692]
[1745610196096,10.15447692,151.28,151.23,12.23837692]
[1745610196496,6.6053,151.27,151.24,6.6063]
[1745610197396,16.75947692,151.28,151.24,6.6063]
[1745610197593,16.75947692,151.28,151.25,6.6061]
[1745610197794,16.75947692,151.28,151.24,10.15447692]
[1745610198295,6.6053,151.27,151.24,16.76067692]
[1745610198595,10.15447692,151.28,151.24,16.76067692]
[1745610198999,16.75967692,151.28,151.24,16.76067692]
[1745610199197,10.15447692,151.28,151.24,16.76067692]
[1745610199599,6.6055,151.27,151.24,16.76067692]
[1745610200099,6.6055,151.27,151.25,6.606]
[1745610202304,6.6058,151.26,151.24,16.76087692]
[1745610202498,10.15447692,151.28,151.24,16.76087692]
[1745610202803,10.15447692,151.28,151.24,10.15447692]
[1745610203605,6.6055,151.27,151.24,10.15447692]
[1745610204203,6.6059,151.26,151.22,10.15447692]
[1745610204711,6.6059,151.26,151.23,6.6066]
[1745610206209,6.6059,151.26,151.24,6.6064]
[1745610207011,6.6055,151.27,151.24,6.6064]
[1745610207612,6.6055,151.27,151.25,6.6061]
[1745610208311,6.605,151.28,151.25,6.6059]
[1745610208512,6.605,151.28,151.24,10.15447692]
[1745610209012,6.6052,151.27,151.25,6.606]
[1745610209310,33.95447692,151.29,151.25,6.606]
[1745610209503,23.8,151.29,151.25,10.15447692]
[1745610210408,16.75877692,151.3,151.26,6.6052]
[1745610210916,6.6044,151.29,151.26,6.6052]
[1745610211313,16.75857692,151.3,151.27,6.6052]
[1745610211813,6.6044,151.29,151.26,6.6053]
[1745610212311,6.6048,151.28,151.25,6.6058]
[1745610212515,16.75927692,151.28,151.25,6.6058]
[1745610212815,10.15447692,151.28,151.25,6.6058]
[1745610213815,10.15447692,151.29,151.25,6.6058]
[1745610214218,6.6049,151.28,151.25,6.6058]
[1745610215318,6.6052,151.27,151.25,6.6058]
[1745610215519,10.15447692,151.29,151.25,6.6058]
[1745610215821,6.605,151.28,151.24,10.15447692]
[1745610216118,10.15447692,151.29,151.24,10.15447692]
[1745610216415,6.605,151.28,151.24,10.15447692]
[1745610216919,6.605,151.28,151.24,16.76077692]
[1745610217222,6.605,151.28,151.24,10.15447692]
[1745610217520,6.605,151.28,151.25,6.606]
[1745610219622,16.75907692,151.29,151.26,6.6056]
[1745610220623,6.6048,151.28,151.26,6.6056]
[1745610221024,6.6048,151.28,151.25,6.6059]
[1745610221226,10.15447692,151.29,151.24,10.15447692]
[1745610222025,6.605,151.28,151.25,6.6058]
[1745610222226,10.15447692,151.29,151.25,6.6058]
[1745610222625,6.6048,151.28,151.25,6.6058]
[1745610223122,23.8,151.31,151.24,10.15447692]
[1745610223323,10.15447692,151.3,151.24,10.15447692]
[1745610223624,33.95447692,151.31,151.26,10.15447692]
[1745610223925,40.55817692,151.31,151.28,6.6046]
[1745610224928,40.55817692,151.31,151.28,16.75907692]
[1745610225430,6.6033,151.32,151.29,6.6043]
[1745610226630,16.75817692,151.31,151.28,10.15447692]
[1745610227130,16.75817692,151.31,151.28,16.75897692]
[1745610227330,16.75817692,151.31,151.28,10.15447692]
[1745610227525,6.6039,151.3,151.28,10.15447692]
[1745610228030,6.6037,151.31,151.28,10.15447692]
[1745610228427,12.19177692,151.33,151.28,10.15447692]
[1745610229032,6.6033,151.32,151.29,6.604]
[1745610229431,12.19177692,151.33,151.29,6.604]
[1745610230132,6.6037,151.31,151.28,16.75897692]
[1745610232534,12.19177692,151.33,151.29,6.6041]
[1745610233233,6.6034,151.32,151.29,6.6041]
[1745610233630,12.19177692,151.33,151.28,6.6046]
[1745610233830,6.6037,151.31,151.28,16.75907692]
[1745610234230,12.19177692,151.33,151.28,10.15447692]
[1745610234936,6.6039,151.31,151.28,16.75907692]
[1745610235238,6.6039,151.31,151.28,10.15447692]
[1745610236034,6.6032,151.32,151.3,6.6039]
[1745610237935,18.79457692,151.33,151.3,6.6039]
[1745610239036,6.6031,151.32,151.3,6.6039]
[1745610239537,6.6031,151.32,151.29,6.6041]
[1745610239836,6.6031,151.32,151.28,10.15447692]
[1745610240038,18.79457692,151.33,151.28,10.15447692]
[1745610240344,18.79457692,151.33,151.3,6.6039]
[1745610241036,12.19177692,151.33,151.3,6.6039]
[1745610241237,6.6031,151.32,151.3,6.6039]
[1745610241534,6.6031,151.32,151.29,6.6041]
[1745610242240,6.6031,151.32,151.28,10.15447692]
[1745610242741,6.6031,151.32,151.29,6.6041]
[1745610243045,6.6035,151.31,151.29,6.6041]
[1745610243246,33.95447692,151.3,151.17,1.15033717]
[1745610243445,10.15447692,151.24,151.19,10.15447692]
[1745610243642,16.76137692,151.24,151.19,10.15447692]
[1745610243841,16.76137692,151.24,151.2,6.6081]
[1745610244144,6.607,151.23,151.2,6.6081]
[1745610244344,6.607,151.23,151.19,10.15447692]
[1745610244944,6.6075,151.22,151.2,6.608]
[1745610246247,6.6071,151.23,151.2,6.608]
[1745610246448,10.15447692,151.24,151.19,10.15447692]
[1745610246847,6.6077,151.22,151.19,10.15447692]
[1745610247244,6.6077,151.22,151.2,6.6083]
[1745610248651,6.6077,151.22,151.19,10.15447692]
[1745610248652,10.15447692,151.24,151.19,10.15447692]
[1745610248850,10.15447692,151.23,151.18,33.95447692]
[1745610249449,6.6077,151.22,151.18,33.95447692]
[1745610250750,6.6077,151.22,151.19,6.6083]
[1745610251050,6.6077,151.22,151.18,33.95447692]
[1745610251251,6.6077,151.22,151.19,10.15447692]
[1745610251850,6.6071,151.23,151.19,10.15447692]
[1745610252251,6.6071,151.23,151.2,6.608]
[1745610252554,6.6075,151.22,151.2,6.608]
[1745610253152,6.6075,151.22,151.19,16.76307692]
[1745610253957,6.6079,151.21,151.19,16.76307692]
[1745610254356,10.15447692,151.23,151.19,16.76307692]
[1745610254553,10.15447692,151.23,151.19,10.15447692]
[1745610254756,10.15447692,151.23,151.18,40.56337692]
[1745610254952,10.15447692,151.23,151.18,16.76337692]
[1745610255154,6.6081,151.21,151.18,16.76337692]
[1745610255454,6.6081,151.21,151.19,6.6087]
[1745610255657,6.6081,151.21,151.18,10.15447692]
[1745610255860,6.6081,151.21,151.18,16.76337692]
[1745610256258,6.6081,151.21,151.18,10.15447692]
[1745610256852,6.6076,151.22,151.19,10.15447692]
[1745610257558,6.6076,151.22,151.19,16.76297692]
[1745610257857,6.6071,151.23,151.19,10.15447692]
[1745610258156,11.27306031,151.24,151.2,6.608]
[1745610258350,6.6073,151.23,151.2,6.608]
[1745610258754,11.27306031,151.24,151.2,6.608]
[1745610258956,11.27306031,151.23,151.18,11.27306031]
[1745610259157,11.27306031,151.22,151.18,11.27306031]
[1745610259660,17.88076031,151.22,151.19,6.6085]
[1745610260158,6.6079,151.21,151.19,6.6085]
[1745610260857,6.6079,151.21,151.18,17.88186031]
[1745610261258,6.6079,151.21,151.18,11.27306031]
[1745610262058,6.6079,151.21,151.18,17.88196031]
[1745610263260,6.6079,151.21,151.19,6.6087]
[1745610263460,6.6079,151.21,151.18,11.27306031]
[1745610264461,11.27306031,151.22,151.18,11.27306031]
[1745610264660,11.27306031,151.21,151.17,6.6096]
[1745610265055,6.6088,151.19,151.17,6.6096]
[1745610265257,11.27306031,151.21,151.17,6.6096]
[1745610265559,6.6086,151.2,151.17,6.6096]
[1745610267161,11.27306031,151.21,151.16,11.27306031]
[1745610267663,17.88096031,151.21,151.18,11.27306031]
[1745610268264,17.88096031,151.21,151.18,17.88196031]
[1745610269066,6.6083,151.2,151.18,17.88196031]
[1745610269367,11.27306031,151.21,151.19,6.6086]
[1745610270562,17.88116031,151.21,151.19,6.6086]
[1745610270762,17.88116031,151.21,151.18,17.88206031]
[1745610271365,17.88116031,151.21,151.18,6.609]
[1745610272667,11.27306031,151.21,151.17,17.88256031]
[1745610273267,6.6086,151.2,151.17,17.88256031]
[1745610274069,6.6088,151.19,151.17,11.27306031]
[1745610274571,6.6088,151.19,151.16,6.6099]
[1745610275270,11.27306031,151.21,151.17,6.6094]
[1745610275271,6.6084,151.2,151.17,6.6094]
[1745610275971,6.6088,151.19,151.17,6.6094]
[1745610276172,6.6088,151.19,151.16,6.6098]
[1745610276373,11.27306031,151.21,151.15,35.05306031]
[1745610276670,6.6081,151.21,151.18,6.609]
[1745610276872,35.07306031,151.22,151.18,6.609]
[1745610277070,6.6079,151.21,151.18,6.609]
[1745610277373,35.07306031,151.22,151.17,17.88246031]
[1745610277575,11.27306031,151.21,151.17,6.6094]
[1745610277871,6.6085,151.2,151.17,6.6094]
[1745610278073,11.27306031,151.2,151.16,17.88296031]
[1745610278273,11.27306031,151.2,151.16,11.27306031]
[1745610279473,6.609,151.19,151.17,6.6095]
[1745610279673,11.27306031,151.2,151.16,11.27306031]
[1745610279874,6.6089,151.19,151.16,11.27306031]
[1745610280274,17.88156031,151.2,151.17,6.6096]
[1745610280669,11.27306031,151.2,151.17,6.6096]
[1745610282275,6.6088,151.19,151.17,6.6096]
[1745610282476,11.27306031,151.2,151.17,6.6096]
[1745610282776,17.88156031,151.2,151.17,6.6096]
[1745610284177,6.6087,151.19,151.17,6.6096]
[1745610285381,17.88156031,151.2,151.18,6.6092]
[1745610287885,11.27306031,151.2,151.18,6.6092]
[1745610288485,17.88156031,151.2,151.17,6.6094]
[1745610288985,17.88156031,151.2,151.16,11.27306031]
[1745610289288,17.88156031,151.2,151.18,6.6091]
[1745610290287,11.27306031,151.2,151.18,6.6091]
[1745610290594,23.8,151.22,151.18,11.27306031]
[1745610290784,11.27306031,151.24,151.2,11.27306031]
[1745610290985,17.87986031,151.24,151.21,6.6076]
[1745610291990,17.87986031,151.24,151.2,11.27306031]
[1745610292390,17.87986031,151.24,151.21,6.6076]
[1745610293688,17.88016031,151.23,151.2,6.608]
[1745610295391,17.88016031,151.23,151.21,6.6078]
[1745610295894,17.88016031,151.23,151.2,6.6082]
[1745610296190,17.88016031,151.23,151.2,6.58472571]
[1745610296790,6.6071,151.23,151.2,6.58472571]
[1745610297286,11.27306031,151.24,151.2,6.58472571]
[1745610297492,6.6068,151.24,151.2,11.27306031]
[1745610297685,487.23306031,151.28,151.23,11.27306031]
[1745610297889,6.6055,151.27,151.24,6.6062]
[1745610298088,35.05306031,151.28,151.23,11.27306031]
[1745610298291,13.34196031,151.3,151.26,11.27306031]
[1745610298492,6.6046,151.29,151.26,17.87856031]
[1745610299189,6.6048,151.28,151.25,17.87896031]
[1745610299387,11.26584417,151.28,151.25,6.6059]
[1745610299694,25.8489,151.3,151.25,6.6059]
[1745610299891,17.87044417,151.29,151.25,6.6059]
[1745610300492,17.87044417,151.29,151.26,6.6055]
[1745610302192,6.6049,151.28,151.25,17.87174417]
[1745610302490,37.11474417,151.3,151.25,17.87174417]
[1745610302683,6.6046,151.29,151.26,6.6056]
[1745610304195,6.6048,151.28,151.25,6.6059]
[1745610304694,11.26548675,151.29,151.24,11.26548675]
[1745610304993,6.6045,151.29,151.26,6.6054]
[1745610305190,37.11438675,151.3,151.25,11.26548675]
[1745610305390,6.6044,151.29,151.26,6.6054]
[1745610305592,23.78,151.3,151.25,11.26548675]
[1745610305787,23.78,151.3,151.29,17.86988675]
[1745610305991,11.26548675,151.33,151.29,17.86988675]
[1745610306193,35.04548675,151.33,151.29,17.86988675]
[1745610306392,41.64838675,151.33,151.29,17.86988675]
[1745610306595,17.86838675,151.33,151.29,17.86988675]
[1745610306797,41.64838675,151.33,151.29,17.86988675]
[1745610307396,17.86838675,151.33,151.29,6.6044]
[1745610307593,35.04548675,151.33,151.28,17.87018675]
[1745610307892,11.26548675,151.29,151.24,11.26548675]
[1745610308096,17.87008675,151.29,151.25,6.6058]
[1745610308298,11.26548675,151.28,151.24,11.26548675]
[1745610308599,17.86878675,151.32,151.29,6.6044]
[1745610308898,11.26548675,151.32,151.29,6.6044]
[1745610309598,11.26548675,151.32,151.28,17.87028675]
[1745610309997,17.86888675,151.32,151.28,11.26548675]
[1745610310198,17.86888675,151.32,151.29,6.6043]
[1745610310598,6.6037,151.31,151.28,11.26548675]
[1745610310799,6.6037,151.31,151.28,17.87008675]
[1745610311299,6.6041,151.3,151.28,11.26548675]
[1745610311599,11.26548675,151.32,151.28,11.26548675]
[1745610311898,6.6037,151.31,151.28,17.87018675]
[1745610312200,11.26548675,151.29,151.24,11.26548675]
[1745610312601,11.26548675,151.27,151.23,23.78]
[1745610312896,11.26548675,151.27,151.22,11.26548675]
[1745610313491,6.606,151.26,151.22,17.87268675]
[1745610313795,6.606,151.26,151.22,11.26548675]
[1745610313999,11.26548675,151.27,151.22,11.26548675]
[1745610314201,11.26548675,151.27,151.23,6.6067]
[1745610314703,6.6059,151.26,151.23,6.6067]
[1745610317201,6.6063,151.25,151.22,17.87268675]
[1745610317401,6.6063,151.25,151.22,11.26548675]
[1745610317905,6.6063,151.25,151.23,6.6068]
[1745610318399,6.6065,151.26,151.23,6.6074]
[1745610319005,6.6068,151.25,151.23,6.6074]
[1745610319205,6.6068,151.25,151.22,11.26548675]
[1745610319206,6.6068,151.25,151.22,17.87338675]
[1745610319706,6.6068,151.25,151.23,6.6076]
[1745610319904,6.6065,151.26,151.23,6.6076]
[1745610320106,11.26548675,151.27,151.23,6.6076]
[1745610320909,6.6064,151.26,151.23,6.6076]
[1745610321107,6.6064,151.26,151.22,11.26548675]
[1745610321307,11.26548675,151.27,151.22,11.26548675]
[1745610321606,6.6065,151.26,151.22,17.87328675]
[1745610321907,11.26548675,151.27,151.22,11.26548675]
[1745610322410,11.26548675,151.25,151.2,35.02548675]
[1745610322914,17.87318675,151.23,151.2,6.6086]
[1745610323210,17.87318675,151.23,151.17,23.76]
[1745610323211,11.26548675,151.23,151.17,35.02548675]
[1745610323411,17.87348675,151.23,151.17,35.02548675]
[1745610324006,17.87348675,151.23,151.2,6.6089]
[1745610324507,6.6081,151.22,151.19,6.6091]
[1745610324712,11.26548675,151.23,151.17,35.02548675]
[1745610324914,11.26548675,151.21,151.17,35.02548675]
[1745610325104,17.87418675,151.21,151.18,6.6096]
[1745610326514,11.26548675,151.21,151.19,6.6093]
[1745610328419,17.87408675,151.21,151.18,6.6096]
[1745610328915,17.87408675,151.21,151.17,11.26548675]
[1745610329122,17.87408675,151.21,151.18,6.6095]
[1745610329619,11.26548675,151.21,151.17,6.6101]
[1745610329821,11.26548675,151.19,151.15,11.26548675]
[1745610330923,11.26548675,151.19,151.17,6.61]
[1745610331221,35.04548675,151.21,151.15,11.26548675]
[1745610331621,41.65418675,151.21,151.18,6.6094]
[1745610332624,6.609,151.2,151.18,6.6094]
[1745610332921,35.04548675,151.21,151.18,6.6094]
[1745610333123,6.609,151.2,151.18,6.6094]
[1745610333315,35.04548675,151.21,151.18,6.6094]
[1745610333624,41.65428675,151.21,151.18,6.6094]
[1745610334022,35.04548675,151.21,151.18,6.6094]
[1745610334224,35.04548675,151.21,151.15,11.26548675]
[1745610334429,11.26548675,151.17,151.12,11.26548675]
[1745610334722,17.87668675,151.15,151.1,11.26548675]
[1745610334923,11.26548675,151.15,151.1,11.26548675]
[1745610335122,11.26548675,151.15,151.09,13.18618675]
[1745610335425,11.26548675,151.13,151.09,13.18618675]
[1745610336023,11.26548675,151.13,151.09,1.9207]
[1745610336224,11.26548675,151.13,151.08,35.04548675]
[1745610336426,35.04548675,151.13,151.08,11.26548675]
[1745610336624,35.04548675,151.13,151.09,6.6135]
[1745610337122,11.26548675,151.11,151.07,11.26548675]
[1745610337727,11.26548675,151.11,151.09,6.6135]
[1745610338323,11.26548675,151.11,151.08,6.6139]
[1745610338523,11.26548675,151.11,151.07,11.26548675]
[1745610338925,11.26548675,151.11,151.09,6.6135]
[1745610342131,11.26548675,151.11,151.08,6.614]
[1745610342427,11.26548675,151.11,151.06,11.26548675]
[1745610343121,11.26548675,151.12,151.08,6.6138]
[1745610343328,11.26548675,151.12,151.06,11.26548675]
[1745610343624,11.26548675,151.12,151.08,11.26548675]
[1745610343924,17.87828675,151.12,151.09,6.6137]
[1745610344626,11.26548675,151.12,151.1,6.6132]
[1745610344827,23.78,151.16,151.1,11.26548675]
[1745610345022,11.26548675,151.16,151.1,11.26548675]
[1745610345724,6.6114,151.15,151.12,6.6122]
[1745610347628,6.6114,151.15,151.11,6.6127]
[1745610347823,11.26548675,151.16,151.11,6.6127]
[1745610348121,11.26548675,151.14,151.11,6.6127]
[1745610348628,17.87728675,151.14,151.11,6.6127]
[1745610349023,17.87708675,151.14,151.1,11.26548675]
[1745610349632,17.87708675,151.14,151.11,6.6127]
[1745610350223,11.26548675,151.14,151.1,11.26548675]
[1745610350425,11.26548675,151.14,151.08,11.26548675]
[1745610350626,11.26548675,151.12,151.08,11.26548675]
[1745610350826,11.26548675,151.12,151.06,35.04548675]
[1745610351025,6.6131,151.11,151.08,6.6139]
[1745610351227,11.26548675,151.12,151.06,35.04548675]
[1745610351427,17.87818675,151.12,151.08,6.6138]
[1745610351629,17.87818675,151.12,151.08,17.87928675]
[1745610352230,17.87818675,151.12,151.09,6.6138]
[1745610353829,6.6129,151.11,151.09,6.6138]
[1745610354032,23.78,151.13,151.1,6.6132]
[1745610354425,23.78,151.13,151.11,6.6128]
[1745610356332,30.392,151.13,151.1,17.87858675]
[1745610356731,23.78,151.13,151.1,11.26548675]
[1745610357231,11.26548675,151.16,151.1,11.26548675]
[1745610357432,35.04548675,151.16,151.1,11.26548675]
[1745610357733,6.6114,151.15,151.12,6.6122]
[1745610357925,6.6114,151.15,151.1,11.26548675]
[1745610358425,6.6114,151.15,151.12,6.6122]
[1745610362437,6.6114,151.15,151.11,6.6126]
[1745610362734,11.26548675,151.14,151.09,11.26548675]
[1745610362935,11.26548675,151.13,151.09,11.26548675]
[1745610363231,11.26548675,151.11,151.06,11.26548675]
[1745610363432,35.04548675,151.11,151.06,17.88038675]
[1745610363734,35.04548675,151.11,151.06,11.26548675]
[1745610363735,6.6141,151.09,151.06,11.26548675]
[1745610363934,35.04548675,151.11,151.06,11.26548675]
[1745610364232,6.6137,151.1,151.07,6.6146]
[1745610364535,35.04548675,151.11,151.07,6.6146]
[1745610364836,6.6134,151.1,151.07,6.6146]
[1745610365234,35.04548675,151.11,151.06,17.88038675]
[1745610365533,6.6138,151.09,151.06,17.88038675]
[1745610366837,6.6142,151.08,151.06,11.26548675]
[1745610367335,6.6146,151.07,151.06,11.26548675]
[1745610367535,11.26548675,151.09,151.04,11.26548675]
[1745610368037,6.6147,151.07,151.05,6.6154]
[1745610368237,11.26548675,151.09,151.04,11.26548675]
[1745610368538,6.6146,151.07,151.05,6.6154]
[1745610368837,11.26548675,151.09,151.05,6.6154]
[1745610369132,6.6145,151.08,151.05,6.6154]
[1745610369439,11.26548675,151.09,151.04,17.88128675]
[1745610369737,6.6148,151.07,151.04,11.26548675]
[1745610370036,11.26548675,151.09,151.04,11.26548675]
[1745610370738,6.6144,151.08,151.05,6.6155]
[1745610370939,35.04548675,151.11,151.06,11.26548675]
[1745610371335,6.6135,151.1,151.07,6.6145]
[1745610371534,13.16448675,151.15,151.08,11.26548675]
[1745610371741,13.16448675,151.15,151.07,23.78]
[1745610371742,11.26548675,151.15,151.1,11.26548675]
[1745610371939,6.6118,151.14,151.11,6.6125]
[1745610373537,11.26548675,151.13,151.09,11.26548675]
[1745610373939,6.6122,151.13,151.09,17.87898675]
[1745610374239,6.6122,151.13,151.09,11.26548675]
[1745610374641,6.6122,151.13,151.1,6.613]
[1745610375542,6.6127,151.12,151.09,17.87908675]
[1745610375840,11.26548675,151.14,151.09,17.87908675]
[1745610376737,6.6127,151.12,151.09,11.26548675]
[1745610376939,6.6127,151.12,151.1,6.6133]
[1745610377743,6.6127,151.12,151.09,17.87908675]
[1745610379542,6.6129,151.11,151.09,17.87908675]
[1745610379842,11.26548675,151.14,151.1,6.6131]
[1745610380044,6.6125,151.12,151.09,11.26548675]
[1745610380343,6.6125,151.12,151.09,17.87878675]
[1745610380643,11.26548675,151.14,151.09,11.26548675]
[1745610380644,6.6122,151.13,151.09,11.26548675]
[1745610380844,23.78,151.15,151.11,17.87818675]
[1745610381148,6.6118,151.14,151.11,17.87818675]
[1745610383746,23.78,151.15,151.11,11.26548675]
[1745610383947,11.26548675,151.14,151.1,6.6131]
[1745610384250,6.6122,151.13,151.1,6.6131]
[1745610384842,11.26548675,151.14,151.09,17.87908675]
[1745610385047,11.26548675,151.14,151.09,11.26548675]
[1745610385446,6.6128,151.12,151.09,17.87898675]
[1745610385846,11.26548675,151.14,151.09,11.26548675]
[1745610386046,11.26548675,151.12,151.07,35.04548675]
[1745610386345,11.26548675,151.12,151.07,11.26548675]
[1745610386946,6.6137,151.1,151.07,17.87988675]
[1745610387149,11.26548675,151.12,151.07,11.26548675]
[1745610387449,6.613,151.11,151.08,6.6139]
[1745610387646,11.26548675,151.14,151.07,11.26548675]
[1745610387842,11.26548675,151.14,151.09,11.26548675]
[1745610388042,35.04548675,151.15,151.09,11.26548675]
[1745610389047,6.6124,151.13,151.1,6.6131]
[1745610389346,35.04548675,151.15,151.09,11.26548675]
[1745610389646,6.6122,151.13,151.1,6.6132]
[1745610390046,11.26548675,151.17,151.11,11.26548675]
[1745610390347,17.87598675,151.17,151.14,6.6113]
[1745610390644,1.9025,151.18,151.16,6.6107]
[1745610390847,11.26548675,151.19,151.15,11.26548675]
[1745610391247,6.6101,151.18,151.15,17.87638675]
[1745610391546,11.26548675,151.19,151.15,11.26548675]
[1745610392547,6.6099,151.18,151.15,17.87628675]
[1745610392847,11.26548675,151.19,151.15,11.26548675]
[1745610393148,17.87508675,151.19,151.16,6.6106]
[1745610393339,11.26548675,151.19,151.16,6.6106]
[1745610393538,11.26548675,151.19,151.15,11.26548675]
[1745610393738,6.6101,151.18,151.15,17.87648675]
[1745610394545,6.6107,151.16,151.13,6.6118]
[1745610394751,6.6107,151.16,151.13,17.87728675]
[1745610395348,6.6105,151.17,151.14,6.6115]
[1745610397951,6.61,151.18,151.15,17.87658675]
[1745610399054,11.26548675,151.18,151.15,11.26548675]
[1745610399354,11.26548675,151.18,151.13,11.26548675]
[1745610399546,6.6114,151.15,151.13,11.26548675]
[1745610400153,6.6114,151.15,151.13,17.87748675]
[1745610401057,6.6114,151.15,151.13,11.26548675]
[1745610402557,11.26548675,151.16,151.12,23.78]
[1745610402758,11.26548675,151.16,151.11,11.26548675]
[1745610403058,6.6113,151.15,151.12,6.6122]
[1745610403458,11.26548675,151.16,151.11,11.26548675]
[1745610403660,6.6118,151.14,151.11,17.87818675]
[1745610403958,6.6118,151.14,151.11,11.26548675]
[1745610404159,6.6114,151.15,151.12,6.6124]
[1745610405557,6.6116,151.14,151.11,17.87818675]
[1745610406159,6.6116,151.14,151.12,6.6124]
[1745610406360,6.6113,151.15,151.12,6.6124]
[1745610406657,6.6113,151.15,151.11,11.26548675]
[1745610406955,17.87638675,151.16,151.11,11.26548675]
[1745610407161,11.26548675,151.16,151.11,11.26548675]
[1745610407360,6.6114,151.15,151.11,11.26548675]
[1745610407661,11.26548675,151.16,151.09,27.8644]
[1745610407962,6.6112,151.15,151.12,6.6124]
[1745610408961,6.6112,151.15,151.11,11.26548675]
[1745610409264,6.6112,151.15,151.12,6.6121]
[1745610409963,6.6112,151.15,151.13,6.6119]
[1745610414367,6.6112,151.15,151.12,6.6122]
[1745610414664,6.6117,151.14,151.12,6.6122]
[1745610414865,11.26548675,151.16,151.11,11.26548675]
[1745610415561,11.26548675,151.16,151.1,6.613]
[1745610415766,11.26548675,151.14,151.08,17.87948675]
[1745610415967,11.26548675,151.14,151.08,11.26548675]
[1745610416169,11.26548675,151.14,151.09,6.6134]
[1745610416468,6.6129,151.12,151.09,6.6134]
[1745610416968,6.6129,151.12,151.1,6.6133]